bitfinex-derivatives/quotes_SOLF0:USTF0_20250227
["timestamp","ask_amount","ask_price","bid_price","bid_amount"]
[1740622905831,7.2773,137.61,137.53,7.281]
[1740622906235,0.0471615,137.57,137.55,0.04681502]
[1740622907438,7.2795,137.56,137.55,0.04681502]
[1740622907635,0.0471615,137.57,137.55,0.04681502]
[1740622909338,1.9301,137.65,137.55,0.04681502]
[1740622909542,11.92,137.67,137.63,7.2758]
[1740622909744,3.9225,137.69,137.5,220.0]
[1740622909944,3.9225,137.69,137.5,26.45454545]
[1740622910140,3.9225,137.69,137.51,1.33730444]
[1740622910340,1.9731,137.69,137.51,2.79174411]
[1740622910540,0.04985746,137.61,137.59,0.04644755]
[1740622910845,1.9731,137.69,137.57,11.94]
[1740622911942,0.04710636,137.64,137.62,0.04828895]
[1740622912143,1.9731,137.69,137.62,0.04828895]
[1740622912345,0.04616434,137.64,137.62,0.04828895]
[1740622912638,1.9731,137.69,137.62,0.04828895]
[1740622912838,0.05403977,137.64,137.62,0.04828895]
[1740622913035,11.92,137.67,137.54,29.93307842]
[1740622913238,0.04863574,137.64,137.54,29.93307842]
[1740622913636,1.28521211,137.66,137.54,29.93307842]
[1740622914343,0.04701334,137.61,137.59,0.04871219]
[1740622914746,1.28542807,137.66,137.59,0.04871219]
[1740622914944,0.05363682,137.61,137.59,0.04871219]
[1740622915145,1.28542807,137.65,137.59,0.04871219]
[1740622915343,0.0508901,137.61,137.59,0.04871219]
[1740622917745,0.0508901,137.61,137.52,1.904]
[1740622917951,7.2782,137.59,137.52,1.904]
[1740622918548,7.2785,137.58,137.52,1.904]
[1740622918748,1.9309,137.65,137.5,25.0]
[1740622918949,0.04881898,137.56,137.54,0.04594769]
[1740622919149,11.9,137.6,137.54,0.04594769]
[1740622919348,0.04751629,137.56,137.5,25.0]
[1740622919549,0.04751629,137.56,137.54,0.04715373]
[1740622920845,0.04751629,137.56,137.5,25.0]
[1740622921447,7.2819,137.52,137.5,25.0]
[1740622922044,0.05209181,137.52,137.5,25.04948003]
[1740622923050,7.2822,137.51,137.5,25.04948003]
[1740622923247,7.2822,137.51,137.5,15.78698003]
[1740622923448,7.2822,137.51,137.5,6.93348003]
[1740622924048,7.33379181,137.52,137.5,6.93348003]
[1740622924259,0.05209181,137.52,137.5,6.93348003]
[1740622925853,7.278,137.59,137.51,7.2821]
[1740622926057,7.278,137.59,137.51,11.1728]
[1740622926553,7.278,137.59,137.52,7.2816]
[1740622926949,0.04835409,137.57,137.54,0.04595853]
[1740622927153,197.8,137.67,137.54,0.04595853]
[1740622927353,1.28567158,137.66,137.51,3.8907]
[1740622927555,197.8,137.67,137.51,3.8907]
[1740622928357,0.04684139,137.6,137.58,7.32938531]
[1740622928546,7.2752,137.65,137.51,3.8907]
[1740622928752,2.0147,137.69,137.51,3.8907]
[1740622929157,2.0147,137.69,137.51,198.8907]
[1740622929346,7.2743,137.66,137.6,7.2769]
[1740622929753,0.04716009,137.64,137.62,0.05421165]
[1740622932150,0.04716009,137.64,137.54,29.93307842]
[1740622932355,1.28557622,137.64,137.54,29.93307842]
[1740622932759,1.28557622,137.64,137.55,12.02]
[1740622932957,0.1004,137.73,137.54,29.93307842]
[1740622933156,7.2754,137.64,137.56,7.2794]
[1740622933459,0.0538644,137.65,137.62,0.05273802]
[1740622933758,0.05110048,137.65,137.62,0.04955834]
[1740622936461,0.05110048,137.65,137.55,1.9083]
[1740622936962,7.2769,137.61,137.55,1.9083]
[1740622937167,12.04,137.6,137.55,1.9083]
[1740622937660,0.05220289,137.59,137.56,0.05331542]
[1740622938564,7.33020289,137.59,137.56,0.05331542]
[1740622938963,0.05220289,137.59,137.56,0.05331542]
[1740622940262,1.33831729,137.59,137.5,6.884]
[1740622940458,195.31921729,137.59,137.5,6.884]
[1740622940762,192.0,137.59,137.5,6.884]
[1740622941667,0.04991554,137.56,137.53,0.05116954]
[1740622942061,0.04991554,137.56,137.53,7.33216954]
[1740622942359,0.04991554,137.56,137.53,0.05116954]
[1740622943862,12.02,137.55,137.53,0.05116954]
[1740622944366,0.04991554,137.56,137.53,0.05116954]
[1740622945058,7.2806,137.54,137.53,0.05116954]
[1740622946059,0.04991554,137.56,137.5,6.884]
[1740622946262,7.2822,137.51,137.5,6.884]
[1740622946467,7.2822,137.51,137.43,29.93307842]
[1740622946468,12.02,137.52,137.44,2.0321]
[1740622946775,7.2849,137.46,137.43,29.93307842]
[1740622947361,0.04966648,137.46,137.43,29.98211004]
[1740622948366,12.02,137.52,137.43,0.04903162]
[1740622948567,12.02,137.52,137.44,1.8999]
[1740622949160,1.8783,137.57,137.49,7.2829]
[1740622949368,1.8783,137.57,137.45,1.963]
[1740622949369,1.28640283,137.56,137.45,1.963]
[1740622949562,0.04972158,137.54,137.52,0.0493456]
[1740622949766,0.04972158,137.54,137.45,1.963]
[1740622949967,0.04972158,137.54,137.52,0.05119084]
[1740622950163,0.04832288,137.51,137.45,1.963]
[1740622950366,12.04,137.58,137.45,1.963]
[1740622950669,1.28618403,137.57,137.52,0.05168214]
[1740622950872,7.2801,137.55,137.52,0.05168214]
[1740622951369,7.2807,137.54,137.52,0.05168214]
[1740622951670,0.04864671,137.55,137.52,0.05168214]
[1740622951870,7.2811,137.54,137.52,0.05168214]
[1740622952174,0.04864671,137.55,137.52,0.05168214]
[1740622954273,7.2811,137.53,137.52,0.05168214]
[1740622954967,7.2836,137.49,137.44,1.8999]
[1740622955471,12.02,137.51,137.44,1.8999]
[1740622955673,1.8868,137.56,137.45,1.9449]
[1740622955877,12.02,137.57,137.49,7.2828]
[1740622956176,0.04776581,137.52,137.49,0.04601055]
[1740622956969,7.2827,137.5,137.49,0.04601055]
[1740622957169,12.04,137.5,137.41,1.8766]
[1740622958480,0.04860268,137.47,137.44,0.05047463]
[1740622958777,7.33330268,137.47,137.44,0.05047463]
[1740622958973,0.04860268,137.47,137.44,0.05047463]
[1740622959977,1.28674616,137.52,137.44,0.05047463]
[1740622960280,12.02,137.53,137.41,1.8766]
[1740622960680,7.2823,137.51,137.45,7.285]
[1740622961076,0.05106285,137.49,137.47,0.05455397]
[1740622961678,192.2433,137.59,137.47,0.05455397]
[1740622961879,1.28628523,137.58,137.41,1.8766]
[1740622962076,1.28628523,137.59,137.41,3.33209814]
[1740622962282,12.02,137.62,137.41,3.33209814]
[1740622962483,1.28606239,137.61,137.41,3.33209814]
[1740622962880,0.05097533,137.52,137.5,0.05315713]
[1740622963183,1.28606239,137.6,137.46,12.02]
[1740622963487,209.94,137.63,137.51,7.2818]
[1740622963683,1.28594732,137.62,137.52,1.906]
[1740622964081,7.2798,137.56,137.52,1.906]
[1740622964377,0.05497395,137.58,137.53,0.04736273]
[1740622964581,0.05497395,137.58,137.52,1.906]
[1740622964781,0.05497395,137.58,137.54,0.05193822]
[1740622965085,7.2791,137.57,137.54,0.05193822]
[1740622965280,0.05497395,137.58,137.54,0.05193822]
[1740622965682,0.05497395,137.58,137.54,7.33213822]
[1740622965877,7.277,137.61,137.54,0.05193822]
[1740622966788,7.277,137.61,137.55,7.2796]
[1740622966983,0.05250367,137.59,137.54,0.05193822]
[1740622968087,0.05250367,137.59,137.56,7.2795]
[1740622968486,0.05250367,137.59,137.54,0.05193822]
[1740622969085,7.2799,137.56,137.54,0.05193822]
[1740622969989,7.2787,137.58,137.54,0.05193822]
[1740622970287,0.05250367,137.59,137.54,0.05193822]
[1740622970792,7.2787,137.58,137.54,0.05193822]
[1740622971186,0.05250367,137.59,137.54,0.05193822]
[1740622971388,7.2793,137.57,137.54,0.05193822]
[1740622972288,12.02,137.57,137.54,0.05193822]
[1740622972489,12.02,137.57,137.47,1.9984]
[1740622973192,1.28627893,137.56,137.47,1.9984]
[1740622973393,1.28627893,137.56,137.48,7.2837]
[1740622973798,0.04671412,137.53,137.5,0.05096022]
[1740622974986,7.32821412,137.53,137.5,0.05096022]
[1740622975192,0.04671412,137.53,137.5,0.05096022]
[1740622977506,0.04671412,137.53,137.51,7.2818]
[1740622977806,7.2792,137.57,137.5,0.05096022]
[1740622978105,1.9705,137.62,137.5,0.05096022]
[1740622978307,1.9705,137.62,137.47,1.9984]
[1740622978508,7.2791,137.57,137.47,1.9984]
[1740622978903,0.05385379,137.53,137.51,0.05507986]
[1740622979106,7.2805,137.55,137.5,7.2823]
[1740622979405,0.05508524,137.53,137.51,0.05177417]
[1740622979605,1.28591743,137.61,137.5,7.2823]
[1740622980202,0.04791667,137.57,137.54,0.05429461]
[1740622980404,7.2795,137.56,137.54,0.05429461]
[1740622980801,0.04791667,137.57,137.54,0.05429461]
[1740622981104,7.2801,137.55,137.54,0.05429461]
[1740622981702,11.98,137.56,137.47,1.9984]
[1740622982004,1.28639884,137.55,137.47,1.9984]
[1740622982508,7.2828,137.5,137.47,1.9984]
[1740622982905,7.33277164,137.5,137.47,2.04970497]
[1740622983508,0.04997164,137.5,137.47,2.04970497]
[1740622983906,1.28644992,137.55,137.47,2.04970497]
[1740622984107,19.2597,137.56,137.47,2.04970497]
[1740622984310,11.98,137.56,137.49,7.2832]
[1740622985311,192.0,137.65,137.51,0.05412239]
[1740622985512,1.2857592,137.64,137.48,11.98]
[1740622985814,1.2857592,137.63,137.48,11.98]
[1740622986009,2.0155,137.66,137.48,11.98]
[1740622986204,7.276,137.63,137.55,7.2796]
[1740622986402,0.05497876,137.58,137.56,0.05325683]
[1740622986708,2.0155,137.66,137.56,0.05325683]
[1740622986907,199.99629124,137.67,137.48,228.83]
[1740622987112,252.53213979,137.68,137.48,228.83]
[1740622987113,197.94,137.71,137.49,1.45465124]
[1740622987312,7.2733,137.68,137.49,377.80522585]
[1740622988010,1.434e-05,137.6,137.59,7.278]
[1740622988414,33.85348023,137.73,137.58,11.98]
[1740622988614,1.28474872,137.72,137.58,11.98]
[1740622988814,7.2716,137.71,137.58,11.98]
[1740622989114,0.05372435,137.66,137.63,0.05253408]
[1740622989614,0.05601328,137.66,137.63,0.048472]
[1740622991814,7.2762,137.63,137.54,39.12467842]
[1740622992113,14.52109912,137.74,137.54,31.84447842]
[1740622992413,8.55590037,137.73,137.54,226.84447842]
[1740622992612,1.28490037,137.72,137.54,226.84447842]
[1740622992913,0.0533718,137.64,137.63,7.2754]
[1740622993105,7.2713,137.72,137.59,12.02]
[1740622993712,7.2713,137.72,137.64,7.2749]
[1740622994109,116.75255563,137.75,137.64,7.2749]
[1740622994416,0.05242714,137.69,137.67,0.0488727]
[1740622994610,7.2718,137.71,137.67,0.0488727]
[1740622994817,0.05261582,137.69,137.67,0.0488727]
[1740622996009,1.28462578,137.74,137.67,0.0488727]
[1740622996217,209.92,137.79,137.59,207.02]
[1740622996515,7.27,137.74,137.67,7.2733]
[1740622997217,0.05262868,137.72,137.69,0.04784164]
[1740622998818,7.2721,137.7,137.69,0.04784164]
[1740622999416,0.05262868,137.72,137.69,0.04784164]
[1740623000418,7.2721,137.7,137.69,0.04784164]
[1740623000619,0.05262868,137.72,137.69,0.04784164]
[1740623001116,7.2718,137.71,137.69,0.04784164]
[1740623001320,7.2718,137.71,137.52,252.76409651]
[1740623001321,33.85,137.71,137.52,252.76409651]
[1740623001522,3.16937296,137.7,137.52,254.65879651]
[1740623001820,9.4733776,137.7,137.52,254.65879651]
[1740623002020,1.28536026,137.69,137.52,254.65879651]
[1740623002615,0.04751326,137.63,137.61,0.04969908]
[1740623002820,1.8841,137.7,137.61,0.04969908]
[1740623003023,0.0542508,137.63,137.56,2.0166]
[1740623003321,1.28517758,137.69,137.56,2.0166]
[1740623003514,0.05108348,137.61,137.58,0.04932458]
[1740623003718,1.28517758,137.69,137.56,2.0166]
[1740623004021,13.9641,137.7,137.58,0.05293304]
[1740623004217,0.04948717,137.64,137.61,0.05403906]
[1740623004421,7.2717,137.71,137.62,7.2762]
[1740623004613,12.08,137.73,137.63,1.9422]
[1740623004817,1.28478897,137.72,137.63,1.9422]
[1740623005222,12.08,137.73,137.63,1.9422]
[1740623005520,12.08,137.73,137.67,0.05253597]
[1740623005521,0.05299681,137.69,137.67,0.05253597]
[1740623007324,1.916,137.75,137.67,0.05253597]
[1740623007524,1.9447,137.78,137.67,0.05253597]
[1740623007721,1.28433919,137.77,137.63,1.9422]
[1740623008018,1.9447,137.78,137.63,1.9422]
[1740623008725,1.9447,137.78,137.69,0.05486551]
[1740623009026,1.9447,137.78,137.68,7.2729]
[1740623009322,1.9447,137.78,137.72,0.04737826]
[1740623010125,7.2706,137.73,137.72,0.04737826]
[1740623010723,7.2702,137.74,137.72,0.04737826]
[1740623011024,1.9447,137.78,137.72,0.04737826]
[1740623011617,7.2696,137.75,137.72,0.04737826]
[1740623014819,7.2704,137.74,137.72,0.04737826]
[1740623016425,7.2706,137.73,137.72,0.04737826]
[1740623017626,7.2718,137.71,137.63,1.9422]
[1740623018527,1.9447,137.78,137.63,1.9422]
[1740623018717,1.28452721,137.77,137.63,1.9422]
[1740623018916,0.04737826,137.72,137.69,0.04799758]
[1740623020932,0.04737826,137.72,137.7,7.272]
[1740623022627,0.04737826,137.72,137.69,0.04799758]
[1740623023530,7.2719,137.71,137.69,0.04799758]
[1740623024931,7.2721,137.7,137.69,0.04799758]
[1740623030534,7.31857826,137.72,137.69,0.04799758]
[1740623030735,0.04737826,137.72,137.69,0.04799758]
[1740623031125,7.2721,137.71,137.69,0.04799758]
[1740623031629,7.2721,137.7,137.69,0.04799758]
[1740623032730,0.04737826,137.72,137.69,0.04799758]
[1740623032929,116.69678821,137.81,137.69,0.04799758]
[1740623033130,1.28432576,137.78,137.65,11.92]
[1740623033334,7.2689,137.77,137.65,11.92]
[1740623033636,4.7377,137.83,137.65,11.92]
[1740623033831,1.28393307,137.82,137.65,206.92]
[1740623034031,13.20393307,137.86,137.65,206.92]
[1740623034233,1.28393307,137.85,137.73,7.2704]
[1740623034537,2.08373307,137.85,137.65,206.92]
[1740623034734,1.28393307,137.84,137.78,6.344e-05]
[1740623035035,7.2709,137.73,137.63,1.9422]
[1740623035434,7.2709,137.73,137.66,7.2742]
[1740623035831,0.04623487,137.71,137.68,0.05300446]
[1740623036538,7.2727,137.69,137.68,0.05300446]
[1740623036935,11.94,137.7,137.68,0.05300446]
[1740623037140,0.04623487,137.71,137.68,0.05300446]
[1740623038541,7.2673,137.8,137.7,7.2716]
[1740623038737,1.28416957,137.79,137.69,1.8888]
[1740623039041,11.94,137.81,137.74,7.2696]
[1740623039637,11.94,137.81,137.76,0.0504966]
[1740623042134,11.94,137.81,137.76,7.3193966]
[1740623042746,11.94,137.81,137.76,0.0504966]
[1740623043045,19.2067,137.81,137.76,0.0504966]
[1740623043239,11.94,137.81,137.76,0.0504966]
[1740623043443,197.68,137.84,137.76,0.0504966]
[1740623043647,3.9828,137.91,137.76,0.0504966]
[1740623043841,11.92,137.89,137.76,0.0504966]
[1740623044043,1.28333931,137.88,137.71,196.8955]
[1740623044246,1.28333931,137.88,137.81,0.04586653]
[1740623044446,8.54613931,137.88,137.82,7.2653]
[1740623044642,7.2628,137.88,137.83,0.0468305]
[1740623044848,11.92,137.89,137.83,0.0468305]
[1740623045049,11.92,137.89,137.77,1.865]
[1740623045252,4.8283,137.91,137.85,0.05009779]
[1740623045451,1.28316854,137.9,137.78,1.8955]
[1740623045652,1.28316854,137.9,137.87,0.05029232]
[1740623045946,11.92,137.95,137.87,0.04744323]
[1740623046142,1.28293214,137.94,137.78,1.8955]
[1740623046345,1.28293214,137.94,137.9,0.04770185]
[1740623046548,1.28293214,137.94,137.78,1.8955]
[1740623046953,11.92,137.95,137.85,0.0483449]
[1740623046954,1.28286713,137.93,137.85,0.0483449]
[1740623047153,1.28286713,137.92,137.85,0.0483449]
[1740623047359,3.22846713,137.94,137.78,1.8955]
[1740623047553,1.28286742,137.93,137.87,0.04668925]
[1740623048558,8.54306742,137.93,137.87,0.04668925]
[1740623048758,7.2602,137.93,137.87,0.04668925]
[1740623048959,2.8369,137.98,137.87,0.04668925]
[1740623049160,1.28255541,137.97,137.83,2.0525]
[1740623049357,1.28255541,137.97,137.91,0.04718335]
[1740623049559,8.54085541,137.97,137.91,7.30818335]
[1740623049762,7.2583,137.97,137.91,7.30818335]
[1740623050261,7.2588,137.96,137.91,0.04718335]
[1740623051164,7.259,137.95,137.91,0.04718335]
[1740623052366,7.2595,137.94,137.91,0.04718335]
[1740623052766,193.9938,137.98,137.91,0.04718335]
[1740623053065,1.28255438,137.97,137.86,7.2633]
[1740623053267,1.28255438,137.97,137.85,1.8878]
[1740623053467,7.2614,137.91,137.85,9.1519]
[1740623054066,11.88,137.94,137.75,110.53430774]
[1740623054262,0.0497157,137.89,137.76,5.9437]
[1740623054569,7.2633,137.87,137.81,7.2663]
[1740623054767,0.0497157,137.84,137.81,0.05011045]
[1740623056861,0.0497157,137.84,137.81,7.31601045]
[1740623057167,0.0497157,137.84,137.81,0.05011045]
[1740623057467,0.0497157,137.84,137.81,7.31591045]
[1740623057664,0.0497157,137.84,137.81,0.05011045]
[1740623058066,0.0497157,137.84,137.82,7.2656]
[1740623058369,0.0497157,137.84,137.81,0.05011045]
[1740623059264,0.0497157,137.84,137.83,7.2653]
[1740623059467,7.2628,137.88,137.83,7.2653]
[1740623060067,7.2635,137.87,137.82,9.2037]
[1740623060268,13.7857,137.91,137.76,3.8958]
[1740623060469,1.28300047,137.9,137.77,1.938]
[1740623060672,1.28300047,137.9,137.82,0.05338752]
[1740623062473,1.28336155,137.89,137.82,0.05338752]
[1740623062669,1.28336155,137.9,137.77,1.938]
[1740623062864,1.28336155,137.89,137.84,0.05271078]
[1740623063068,13.7857,137.91,137.77,1.938]
[1740623063069,1.28336155,137.88,137.77,1.938]
[1740623063271,193.28336155,137.9,137.77,1.938]
[1740623063467,7.2656,137.83,137.77,9.206]
[1740623064274,0.0494184,137.81,137.79,0.04795233]
[1740623065972,7.2644,137.85,137.79,0.04795233]
[1740623066377,7.2644,137.85,137.8,7.2669]
[1740623066579,7.2648,137.84,137.79,0.04795233]
[1740623066777,7.2648,137.84,137.77,1.938]
[1740623067176,7.2648,137.84,137.79,0.05151309]
[1740623067379,7.2648,137.84,137.79,7.31891309]
[1740623070073,11.86,137.88,137.79,0.05151309]
[1740623070283,1.28338797,137.87,137.76,3.8958]
[1740623070577,1.28338797,137.87,137.82,0.04774338]
[1740623070778,7.2667,137.81,137.75,7.2694]
[1740623071278,11.86,137.88,137.75,7.2694]
[1740623071480,7.2669,137.8,137.75,7.2694]
[1740623071779,1.28363665,137.87,137.73,3.8275]
[1740623071780,11.86,137.88,137.76,7.2689]
[1740623072078,1.28372862,137.87,137.73,3.8275]
[1740623072268,0.04905529,137.83,137.81,6.303e-05]
[1740623072476,0.04905529,137.83,137.7,159.27360715]
[1740623072676,217.00112862,137.85,137.7,159.27360715]
[1740623072876,1.28372862,137.84,137.69,3.8275]
[1740623073279,7.269,137.76,137.69,3.8275]
[1740623073579,7.269,137.76,137.7,7.272]
[1740623073779,0.04843516,137.74,137.71,0.05141611]
[1740623073980,7.2706,137.73,137.71,0.05141611]
[1740623074176,0.04843516,137.74,137.71,0.05141611]
[1740623076880,7.31883516,137.74,137.71,0.05141611]
[1740623078883,0.04843516,137.74,137.71,0.05141611]
[1740623079479,0.04843516,137.74,137.71,7.32301611]
[1740623079674,0.04843516,137.74,137.71,0.05141611]
[1740623080283,7.2711,137.72,137.71,0.05141611]
[1740623081582,7.31853516,137.74,137.71,0.05141611]
[1740623082982,0.04843516,137.74,137.71,0.05141611]
[1740623089394,7.2711,137.72,137.71,0.05141611]
[1740623090889,7.31893516,137.74,137.71,0.05141611]
[1740623091289,0.04843516,137.74,137.71,0.05141611]
[1740623093385,7.2711,137.72,137.71,0.05141611]
[1740623093790,0.04843516,137.74,137.71,0.05141611]
[1740623095788,7.31893516,137.74,137.71,0.05141611]
[1740623095993,0.04843516,137.74,137.71,0.05141611]
[1740623096800,0.04843516,137.74,137.63,4.0324]
[1740623096996,1.28460274,137.75,137.61,110.53430774]
[1740623097191,9.4794823,137.74,137.61,110.53430774]
[1740623097390,1.28460274,137.73,137.6,191.27521657]
[1740623097588,2.18480274,137.73,137.6,191.27521657]
[1740623097894,2.18480274,137.73,137.65,9.302e-05]
[1740623097895,0.05333005,137.68,137.65,9.302e-05]
[1740623098097,7.2742,137.66,137.65,9.302e-05]
[1740623098695,8.55949259,137.66,137.65,9.302e-05]
[1740623098896,7.2742,137.66,137.65,9.302e-05]
[1740623099198,8.55947192,137.66,137.65,9.302e-05]
[1740623100499,9.45817192,137.66,137.65,9.302e-05]
[1740623102998,11.35907192,137.66,137.65,9.302e-05]
[1740623105209,10.46037192,137.66,137.65,9.302e-05]
[1740623105402,8.55947192,137.66,137.65,9.302e-05]
[1740623105608,7.2742,137.66,137.65,9.302e-05]
[1740623105808,8.5596661,137.66,137.65,9.302e-05]
[1740623108109,4.188,137.66,137.65,9.302e-05]
[1740623108608,0.05333005,137.68,137.65,9.302e-05]
[1740623109107,7.32663005,137.68,137.65,9.302e-05]
[1740623110607,0.05333005,137.68,137.65,9.302e-05]
[1740623111209,1.28486146,137.74,137.65,9.302e-05]
[1740623111508,1.28486146,137.74,137.64,1.9548]
[1740623111905,197.78,137.75,137.64,1.9548]
[1740623112106,7.269,137.76,137.64,1.9548]
[1740623112304,0.04792819,137.71,137.64,1.9548]
[1740623112514,128.55628515,137.79,137.72,7.2708]
[1740623112707,128.55628515,137.79,137.68,0.04581051]
[1740623112907,7.2686,137.77,137.64,1.9548]
[1740623113111,7.2686,137.77,137.72,7.2707]
[1740623113508,7.269,137.76,137.72,7.2707]
[1740623113707,0.04583787,137.76,137.73,0.05397792]
[1740623113908,128.55628515,137.79,137.65,1.9044]
[1740623114112,7.2705,137.74,137.73,0.04864472]
[1740623114816,7.2705,137.74,137.73,4.472e-05]
[1740623115016,8.55504458,137.74,137.73,4.472e-05]
[1740623116415,16.14197819,137.74,137.73,4.472e-05]
[1740623116814,20.39504458,137.74,137.73,4.472e-05]
[1740623117413,27.98297222,137.74,137.73,4.472e-05]
[1740623117619,20.39562507,137.74,137.73,4.472e-05]
[1740623118919,13.12512507,137.74,137.73,4.472e-05]
[1740623119517,20.39512507,137.74,137.73,4.472e-05]
[1740623127212,20.39475842,137.74,137.73,4.472e-05]
[1740623128818,42.24475837,137.74,137.73,4.472e-05]
[1740623129120,22.40095837,137.74,137.73,4.472e-05]
[1740623129315,44.25095837,137.74,137.73,4.472e-05]
[1740623130620,44.25129477,137.74,137.73,4.472e-05]
[1740623133320,58.82129477,137.74,137.5,110.53430774]
[1740623133525,43.69,137.72,137.55,1.8683]
[1740623133824,3.24389477,137.71,137.55,1.8683]
[1740623134024,1.28509477,137.7,137.55,1.8683]
[1740623134523,7.278,137.59,137.55,1.8683]
[1740623134932,0.04682966,137.58,137.56,0.05226923]
[1740623136126,11.84,137.66,137.57,7.279]
[1740623136424,1.28556151,137.65,137.58,3.9471]
[1740623137323,0.05246576,137.63,137.6,0.04948569]
[1740623137526,7.2769,137.61,137.6,0.04948569]
[1740623138617,7.2769,137.61,137.6,8.569e-05]
[1740623138822,8.56274909,137.61,137.6,8.569e-05]
[1740623139124,7.2769,137.61,137.6,8.569e-05]
[1740623142827,0.05246576,137.63,137.6,8.569e-05]
[1740623143927,7.32866576,137.63,137.6,8.569e-05]
[1740623144520,7.2764,137.62,137.6,8.569e-05]
[1740623145724,0.05246576,137.63,137.6,8.569e-05]
[1740623145930,7.2769,137.61,137.6,8.569e-05]
[1740623149031,7.32876576,137.63,137.6,8.569e-05]
[1740623149235,0.05246576,137.63,137.6,8.569e-05]
[1740623149830,1.28532974,137.67,137.6,8.569e-05]
[1740623150430,11.84,137.68,137.6,8.569e-05]
[1740623150935,0.05021703,137.65,137.6,8.569e-05]
[1740623151930,7.2759,137.63,137.6,8.569e-05]
[1740623155433,0.05021703,137.65,137.6,7.27748569]
[1740623156134,7.2754,137.64,137.6,8.569e-05]
[1740623156331,0.05021703,137.65,137.6,8.569e-05]
[1740623156729,0.05021703,137.65,137.61,7.2769]
[1740623157742,7.2729,137.69,137.64,7.2753]
[1740623158442,197.82,137.73,137.56,3.8952]
[1740623158645,13.1248819,137.72,137.56,198.8952]
[1740623158848,1.2848819,137.71,137.56,198.8952]
[1740623159142,0.04792914,137.65,137.63,0.05350839]
[1740623159442,209.66,137.73,137.56,3.8952]
[1740623159443,11.84,137.71,137.56,3.8952]
[1740623159841,7.2732,137.68,137.56,3.8952]
[1740623160241,11.84,137.71,137.56,3.8952]
[1740623160744,11.84,137.71,137.63,7.2758]
[1740623161146,7.2736,137.68,137.66,0.05236973]
[1740623161347,11.84,137.71,137.66,0.05236973]
[1740623161544,7.2734,137.68,137.66,0.05236973]
[1740623162648,11.84,137.71,137.66,0.05236973]
[1740623162842,7.2737,137.67,137.66,0.05236973]
[1740623163239,1.8611,137.77,137.66,0.05236973]
[1740623163439,1.28458393,137.76,137.65,1.9756]
[1740623163645,116.71628515,137.79,137.7,0.04973683]
[1740623163845,7.2696,137.75,137.65,1.9756]
[1740623164147,7.2696,137.75,137.73,0.05392944]
[1740623164450,116.71628515,137.79,137.73,0.05208953]
[1740623164741,1.28415514,137.78,137.73,0.05208953]
[1740623165341,7.27,137.74,137.73,0.05208953]
[1740623166251,116.71628515,137.79,137.73,0.05208953]
[1740623166449,1.28439494,137.78,137.73,0.05208953]
[1740623166651,116.71628515,137.79,137.73,0.05208953]
[1740623166849,7.2693,137.76,137.73,0.05208953]
[1740623167246,116.71628515,137.79,137.73,0.05208953]
[1740623168554,7.2688,137.77,137.73,0.05208953]
[1740623169150,7.2693,137.76,137.73,0.05208953]
[1740623169456,116.71628515,137.79,137.73,0.05208953]
[1740623169748,1.28446295,137.78,137.65,5.9878]
[1740623170147,1.28446295,137.78,137.66,3.59695198]
[1740623170350,1.28446295,137.78,137.67,3.59590453]
[1740623170651,1.28446295,137.78,137.71,7.2712]
[1740623170842,0.05128871,137.74,137.72,1.9261]
[1740623171253,1.28446295,137.78,137.72,1.9261]
[1740623171555,209.62,137.82,137.72,5.6768]
[1740623171853,7.2677,137.79,137.73,7.2704]
[1740623172053,7.2677,137.79,137.72,5.6768]
[1740623172451,7.2677,137.79,137.74,0.0486749]
[1740623172745,118.48671764,137.89,137.74,0.0486749]
[1740623172954,3.22997033,137.88,137.72,5.6768]
[1740623173146,3.22997033,137.88,137.8,0.05492602]
[1740623173448,1.28387033,137.87,137.8,0.05492602]
[1740623173654,1.28387033,137.86,137.81,7.2662]
[1740623173851,8.54697033,137.88,137.82,3.89467495]
[1740623174150,116.62271764,137.89,137.82,3.89467495]
[1740623174750,7.2637,137.86,137.82,3.89467495]
[1740623174951,116.62271764,137.89,137.82,0.04577495]
[1740623175143,1.28328883,137.88,137.82,0.04577495]
[1740623175950,7.2653,137.83,137.82,0.04577495]
[1740623176155,19.0853,137.83,137.82,0.04577495]
[1740623176449,13.10370195,137.83,137.76,1.8732]
[1740623176656,11.82,137.83,137.76,1.8732]